bitfinex-derivatives/quotes_ETHF0:USTF0_20241207
["timestamp","ask_amount","ask_price","bid_price","bid_amount"]
[1733535145511,3.38308,3987.3,3986.9,0.1753]
[1733535145811,3.38308,3987.3,3986.5,0.752]
[1733535145812,3.2078,3987.3,3986.5,0.752]
[1733535146218,3.2078,3987.3,3987.0,0.17529]
[1733535146516,3.2078,3987.3,3987.2,0.17528]
[1733535146718,3.2078,3987.3,3987.2,0.92728]
[1733535147723,3.2078,3987.3,3986.3,3.9649]
[1733535148018,3.2078,3987.3,3986.4,0.752]
[1733535148221,0.17529,3987.1,3986.6,0.17531]
[1733535148409,0.17529,3987.2,3986.7,0.1753]
[1733535148911,0.17529,3987.2,3986.6,0.17531]
[1733535149111,3.2078,3987.3,3986.4,0.752]
[1733535149307,0.17529,3987.1,3986.6,0.17531]
[1733535149712,3.2078,3987.3,3986.4,0.752]
[1733535150014,0.17529,3987.2,3986.7,0.1753]
[1733535150412,0.17529,3987.0,3986.5,0.17531]
[1733535150614,3.2078,3987.3,3986.4,0.752]
[1733535151117,0.17531,3986.7,3986.5,0.752]
[1733535151313,3.2078,3986.9,3986.5,1.00256815]
[1733535151617,3.2078,3986.9,3986.5,1.17787815]
[1733535151814,3.2078,3986.9,3986.5,1.00256815]
[1733535152118,6.34978202,3987.6,3986.5,1.00256815]
[1733535152119,3.2078,3987.4,3986.5,4.21036815]
[1733535152416,3.93215847,3988.0,3987.5,0.17527]
[1733535152417,3.2078,3987.8,3987.5,0.17527]
[1733535152818,3.2078,3987.8,3987.4,0.68138763]
[1733535152819,3.2078,3987.8,3987.6,0.4107]
[1733535153422,3.2078,3987.8,3987.6,0.58597]
[1733535153719,3.93215847,3988.5,3987.9,0.17525]
[1733535153720,6.33225256,3988.5,3987.9,0.17525]
[1733535153919,3.2078,3988.5,3987.7,0.3971]
[1733535154322,3.2078,3988.5,3988.1,0.17524]
[1733535154520,0.17523,3988.4,3987.9,0.17525]
[1733535154822,3.2078,3988.5,3987.6,0.4107]
[1733535155018,3.2078,3988.5,3986.8,3.2078]
[1733535155019,3.2078,3987.7,3986.8,3.2078]
[1733535155218,0.17528,3987.3,3986.9,1.1602]
[1733535155428,0.17527,3987.5,3986.9,1.1602]
[1733535155719,3.2078,3987.7,3986.9,1.1602]
[1733535156223,3.2078,3987.7,3986.7,0.803]
[1733535156224,3.2078,3987.3,3986.7,1.1432]
[1733535156425,0.1753,3986.8,3986.7,1.1432]
[1733535156720,0.17531,3986.6,3986.2,3.79133]
[1733535156924,3.2078,3987.3,3985.3,3.2078]
[1733535156925,3.2078,3986.8,3985.3,3.2078]
[1733535157125,3.2078,3986.0,3984.4,0.7726]
[1733535157419,3.2078,3986.0,3984.7,3.2078]
[1733535157615,0.17535,3985.9,3985.3,0.25056815]
[1733535157817,0.2002,3986.5,3985.3,0.25056815]
[1733535157818,0.17536,3985.6,3985.4,0.3814]
[1733535158027,3.2078,3986.1,3985.4,0.3814]
[1733535158214,0.17534,3986.0,3985.6,0.17535]
[1733535158421,3.408,3986.5,3985.6,0.17535]
[1733535158619,3.408,3986.5,3985.5,0.17536]
[1733535158827,0.17532,3986.3,3985.9,0.17534]
[1733535159025,3.2078,3986.5,3985.4,0.7731]
[1733535159026,3.2078,3986.5,3986.0,0.17534]
[1733535159326,3.2078,3986.5,3985.4,0.7731]
[1733535159522,0.17534,3986.0,3985.6,0.17535]
[1733535159823,3.2078,3986.5,3985.4,0.7731]
[1733535160227,0.17536,3985.5,3985.4,0.3814]
[1733535160925,0.17538,3985.1,3984.7,0.17539]
[1733535161118,3.2078,3986.0,3985.1,0.17538]
[1733535161318,3.2078,3985.8,3985.0,0.752]
[1733535161524,3.2078,3986.0,3985.1,0.43845]
[1733535161723,3.2078,3986.6,3985.9,3.2078]
[1733535161924,0.17532,3986.5,3986.1,0.17533]
[1733535162126,0.17533,3986.1,3986.0,0.4083]
[1733535162424,3.2078,3986.6,3986.0,0.4083]
[1733535162828,0.17533,3986.1,3986.0,0.4083]
[1733535163225,0.17533,3986.1,3985.5,0.752]
[1733535163429,3.2078,3986.2,3985.5,0.752]
[1733535163626,0.17535,3985.7,3985.5,0.752]
[1733535163827,0.17535,3985.6,3985.5,0.752]
[1733535164124,0.17535,3985.8,3985.5,0.92736]
[1733535164325,3.2078,3986.2,3985.5,0.752]
[1733535164527,0.17534,3986.0,3985.7,0.17535]
[1733535164929,3.2078,3986.1,3985.8,0.17535]
[1733535165133,3.2078,3986.1,3985.1,4.0284]
[1733535165134,3.2078,3986.6,3985.6,0.752]
[1733535165324,0.17532,3986.5,3986.2,0.17533]
[1733535165631,3.2078,3986.6,3985.6,0.752]
[1733535165632,3.2078,3986.6,3985.6,1.1515]
[1733535165829,3.38312,3986.6,3986.3,0.17533]
[1733535166226,3.2078,3986.6,3985.6,1.1515]
[1733535166426,0.17531,3986.8,3986.4,0.17532]
[1733535166628,3.2962,3987.2,3985.8,0.43838]
[1733535166629,3.2078,3987.2,3985.9,3.2078]
[1733535166832,0.17529,3987.2,3986.8,0.1753]
[1733535167030,3.2078,3987.6,3987.3,0.17528]
[1733535167233,3.2078,3987.6,3987.1,0.17529]
[1733535167435,3.2078,3987.6,3987.5,0.17528]
[1733535168032,0.17526,3987.9,3987.6,0.17527]
[1733535168232,0.17526,3987.9,3987.5,0.17527]
[1733535168433,5.62542355,3988.0,3987.7,0.03607103]
[1733535168730,0.17526,3987.8,3987.7,0.03607103]
[1733535169034,0.17526,3987.9,3987.7,0.03607103]
[1733535169230,5.62542355,3988.0,3987.7,0.03607103]
[1733535169437,0.17526,3987.9,3987.8,0.03607103]
[1733535170833,5.0,3987.9,3987.0,0.752]
[1733535171133,5.62542355,3987.4,3986.5,0.752]
[1733535171537,0.1753,3986.9,3986.7,0.17531]
[1733535171730,0.1753,3987.0,3986.8,0.1753]
[1733535171931,2.41762355,3987.4,3986.7,0.17531]
[1733535171932,0.17531,3986.9,3986.7,0.17531]
[1733535172125,5.62542355,3987.4,3986.7,0.17531]
[1733535172330,0.1753,3986.9,3986.8,0.25051104]
[1733535173133,5.62542355,3987.4,3986.8,0.25051104]
[1733535173339,0.1753,3987.0,3986.8,0.42581104]
[1733535173635,0.17529,3987.3,3986.8,0.25051104]
[1733535173833,3.2078,3987.4,3986.8,0.25051104]
[1733535174137,0.1753,3987.0,3986.8,0.25051104]
[1733535174339,0.1753,3987.0,3986.8,0.42581104]
[1733535174636,0.1753,3987.0,3986.9,0.1753]
[1733535174837,0.17529,3987.2,3987.0,0.17529]
[1733535175039,3.2078,3987.4,3986.8,0.25051104]
[1733535175433,0.17527,3987.7,3986.9,3.64606]
[1733535175634,2.41762355,3987.9,3987.7,0.17526]
[1733535175835,0.17526,3987.9,3987.6,0.17527]
[1733535176138,3.2078,3988.0,3987.2,0.779]
[1733535176334,0.17527,3987.7,3987.2,0.779]
[1733535176537,0.17527,3987.7,3987.4,0.17528]
[1733535176736,0.17527,3987.7,3987.2,0.779]
[1733535177032,0.17528,3987.5,3987.2,0.779]
[1733535177239,3.38307,3987.6,3987.3,0.17528]
[1733535177438,3.38307,3987.6,3987.4,0.17528]
[1733535177642,3.2078,3987.6,3986.4,0.3849]
[1733535177943,0.17531,3986.7,3986.6,0.25056251]
[1733535178142,0.17532,3986.5,3986.4,0.3849]
[1733535178447,5.62542355,3986.8,3986.0,3.63375023]
[1733535178742,5.62542355,3986.8,3986.0,3.45841023]
[1733535178938,0.17534,3986.1,3986.0,0.42595023]
[1733535179140,0.17532,3986.6,3986.4,0.17532]
[1733535179333,3.2078,3987.2,3986.0,0.25061023]
[1733535179933,0.17534,3986.1,3986.0,0.25061023]
[1733535180948,3.2078,3986.4,3986.0,0.25061023]
[1733535181544,3.2078,3986.9,3986.3,0.17533]
[1733535181750,0.17531,3986.8,3986.6,0.17531]
[1733535182147,3.2078,3986.9,3986.4,0.414]
[1733535182450,3.2078,3986.9,3986.7,0.17531]
[1733535182749,3.2078,3986.9,3986.8,0.17531]
[1733535183249,3.38308,3987.4,3987.2,0.17529]
[1733535183445,3.2078,3987.4,3986.8,0.779]
[1733535183641,5.62542355,3987.8,3986.8,0.779]
[1733535183855,3.2078,3987.8,3987.1,3.2078]
[1733535184546,3.38306,3987.8,3987.1,3.2078]
[1733535184746,3.38306,3987.8,3987.5,0.17527]
[1733535184946,3.38306,3987.8,3987.6,0.59087]
[1733535185648,3.2078,3987.8,3987.6,0.4156]
[1733535186148,3.2078,3987.8,3987.6,0.59087]
[1733535186349,0.17527,3987.7,3987.6,0.4156]
[1733535186748,3.2078,3987.8,3987.6,0.4156]
[1733535186953,3.38306,3987.8,3987.6,0.59087]
[1733535187153,2.94922256,3988.0,3987.6,0.4156]
[1733535187354,3.12446256,3988.2,3987.9,0.17525]
[1733535187548,0.17525,3988.1,3987.9,0.17525]
[1733535187947,8.57464611,3988.3,3987.6,1.2009]
[1733535188152,5.54208611,3988.3,3987.9,0.17525]
[1733535188449,0.17523,3988.5,3988.2,0.17524]
[1733535188647,0.17523,3988.5,3987.6,1.2009]
[1733535188845,6.33224256,3988.7,3988.4,0.17523]
[1733535189044,6.33224256,3988.7,3988.5,0.17523]
[1733535189254,3.2078,3988.7,3987.8,0.43816]
[1733535189554,3.38303,3988.7,3987.8,0.43816]
[1733535189753,3.38303,3988.7,3987.6,1.2009]
[1733535189754,0.17523,3988.6,3987.6,1.2009]
[1733535189957,3.2078,3988.7,3987.6,1.2009]
[1733535190149,0.17524,3988.4,3988.1,0.17525]
[1733535190353,2.94922256,3988.6,3987.6,1.2009]
[1733535190557,0.17526,3987.9,3987.6,1.37617]
[1733535190853,3.2078,3988.3,3987.6,1.2009]
[1733535191054,0.17526,3987.9,3987.6,1.2009]
[1733535191254,0.17526,3987.9,3987.6,1.37617]
[1733535191455,3.2078,3988.3,3987.6,1.37617]
[1733535191661,0.17526,3987.8,3987.6,1.2009]
[1733535191861,0.17526,3988.0,3987.7,0.17526]
[1733535192058,3.2078,3988.3,3987.6,0.4156]
[1733535192361,0.17523,3988.5,3988.2,0.17524]
[1733535192551,3.2078,3988.7,3987.6,0.85377]
[1733535192552,6.15702256,3988.7,3987.6,0.85377]
[1733535192748,0.17523,3988.5,3988.2,0.17524]
[1733535192951,3.2078,3988.7,3988.6,0.17523]
[1733535193347,3.2078,3988.7,3988.2,0.779]
[1733535193348,3.12443256,3989.0,3988.7,0.17522]
[1733535193562,0.17521,3989.0,3988.7,0.17522]
[1733535193862,0.17521,3989.1,3988.3,4.0035]
[1733535194157,3.2078,3989.2,3988.3,4.0035]
[1733535194757,0.17523,3988.5,3988.3,4.0035]
[1733535194953,0.17523,3988.5,3988.3,3.6043]
[1733535195260,3.2078,3988.4,3988.0,0.25053614]
[1733535195559,0.17525,3988.1,3988.0,0.25053614]
[1733535196655,5.62542355,3988.8,3988.7,0.17522]
[1733535197056,3.2078,3988.8,3988.7,0.17522]
[1733535197458,2.41762355,3989.3,3988.5,0.779]
[1733535197655,2.41762355,3989.3,3988.6,0.4113]
[1733535197861,0.17522,3988.8,3988.6,0.4113]
[1733535198057,0.17522,3988.9,3988.7,0.17522]
[1733535198452,0.17521,3989.1,3988.6,0.4113]
[1733535198656,2.41762355,3989.3,3988.9,0.17521]
[1733535198857,0.17521,3989.1,3989.0,0.17521]
[1733535199052,0.1752,3989.2,3989.1,0.1752]
[1733535199259,0.1752,3989.2,3989.0,0.17521]
[1733535199555,3.2078,3989.4,3988.6,0.4113]
[1733535199755,3.2078,3989.4,3989.3,0.1752]
[1733535200555,0.17519,3989.6,3989.4,0.17519]
[1733535200863,0.17519,3989.6,3989.2,0.779]
[1733535200864,2.41762355,3989.8,3989.5,0.4077]
[1733535201059,0.17518,3989.6,3989.5,0.4077]
[1733535201253,0.17518,3989.7,3989.5,0.58288]
[1733535201455,0.17518,3989.7,3989.5,0.58289]
[1733535201660,5.62542355,3990.3,3989.5,3.6155]
[1733535201857,3.2078,3990.3,3989.5,3.6155]
[1733535202065,0.17516,3990.1,3989.9,0.17517]
[1733535202258,0.17514,3990.6,3989.9,0.17517]
[1733535202453,0.17516,3990.1,3990.0,0.17517]
[1733535202659,3.2078,3990.7,3989.9,0.779]
[1733535203059,0.17517,3990.0,3989.9,0.779]
[1733535203559,3.2078,3990.2,3989.5,0.4077]
[1733535203560,0.17518,3989.6,3989.5,0.4077]
[1733535203870,6.06330355,3990.4,3989.6,0.17518]
[1733535204065,0.17518,3989.7,3989.5,1.34789]
[1733535204258,0.17518,3989.7,3989.5,1.34788]
[1733535204454,6.06330355,3990.4,3989.5,1.34788]
[1733535204659,6.06330355,3990.4,3989.6,0.765]
[1733535204860,0.17518,3989.7,3989.6,0.765]
[1733535206365,0.17518,3989.7,3989.6,0.94018]
[1733535207165,0.17518,3989.7,3989.6,0.765]
[1733535208869,3.2078,3990.0,3989.6,0.17518]
[1733535209069,0.17518,3989.7,3989.5,1.13674513]
[1733535209262,0.17518,3989.7,3989.6,0.17518]
[1733535209562,0.17518,3989.7,3989.5,1.13674513]
[1733535209762,3.2078,3990.0,3989.5,1.13674513]
[1733535209961,0.17518,3989.6,3989.5,1.13674513]
[1733535210170,3.2078,3990.0,3989.5,1.13674513]
[1733535210671,3.2078,3990.0,3989.9,0.17517]
[1733535211071,0.17517,3989.9,3989.7,0.17518]
[1733535211272,0.17518,3989.6,3989.5,1.13674513]
[1733535212378,6.15702256,3990.0,3989.5,1.13674513]
[1733535212379,0.17518,3989.7,3989.5,1.13674513]
[1733535212578,2.94922256,3989.9,3989.5,0.37174513]
[1733535212773,0.17518,3989.6,3989.5,0.37174513]
[1733535214274,3.12439256,3989.9,3989.7,0.17518]
[1733535214476,0.17517,3989.9,3989.6,0.17518]
[1733535214883,3.2078,3990.0,3989.5,0.37174513]
[1733535215075,0.17517,3989.9,3989.6,0.17518]
[1733535215279,0.17517,3990.0,3989.7,0.17518]
[1733535215581,0.17517,3989.9,3989.7,0.17518]
[1733535216284,0.17517,3990.0,3989.7,0.17518]
[1733535216587,0.17518,3989.6,3989.5,0.37174513]
[1733535218484,2.39628305,3990.2,3989.5,0.37174513]
[1733535218685,0.17518,3989.7,3989.5,0.37174513]
[1733535218886,0.17518,3989.7,3989.5,0.54693513]
[1733535219187,0.17518,3989.7,3989.6,0.17518]
[1733535219392,0.17518,3989.7,3989.5,0.37174513]
[1733535219393,1.95838305,3990.2,3989.5,0.37174513]
[1733535219593,0.17518,3989.7,3989.6,0.17518]
[1733535219785,1.95838305,3990.2,3989.6,0.17518]
[1733535219986,1.95838305,3990.2,3989.5,0.37174513]
[1733535220392,0.17516,3990.1,3989.9,0.17517]
[1733535220588,1.95838305,3990.6,3989.6,3.2078]
[1733535220784,0.17515,3990.4,3990.2,0.17516]
[1733535220982,1.95838305,3990.6,3989.6,3.2078]
[1733535221189,0.17516,3990.2,3990.0,0.17516]
[1733535221385,1.95838305,3990.2,3989.6,3.2078]
[1733535221585,0.17518,3989.8,3989.6,3.38298]
[1733535221788,1.95838305,3990.2,3989.6,0.17518]
[1733535221995,0.17518,3989.6,3989.5,0.37174513]
[1733535222295,0.17518,3989.8,3989.7,0.17518]
[1733535222486,0.17518,3989.6,3989.5,0.54693513]
[1733535222691,1.95838305,3990.2,3989.5,0.37174513]
[1733535222990,0.17518,3989.7,3989.6,0.17518]
[1733535223186,1.95838305,3990.2,3989.5,0.37174513]
[1733535223593,0.17517,3990.0,3989.9,0.17517]
[1733535223791,1.95838305,3990.2,3989.8,0.17517]
[1733535223989,1.95838305,3990.2,3989.5,0.37174513]
[1733535223990,0.17516,3990.1,3989.9,0.55927]
[1733535224200,1.95838305,3990.2,3989.9,0.55927]
[1733535224201,0.17517,3990.0,3989.9,0.55927]
[1733535224396,0.17516,3990.2,3989.9,0.3841]
[1733535224591,3.2078,3990.3,3990.2,0.17516]
[1733535225489,2.94922256,3990.7,3990.2,0.17516]
[1733535225490,0.17514,3990.6,3990.2,0.17516]
[1733535225793,2.94922256,3990.9,3990.4,3.2078]
[1733535226105,2.94922256,3990.9,3990.5,0.4019]
[1733535226396,6.15702256,3991.2,3990.5,0.4019]
[1733535226704,0.17512,3991.1,3990.9,0.17513]
[1733535227093,0.17512,3991.0,3990.8,0.94013]
[1733535227295,3.2078,3991.2,3990.9,0.17512]
[1733535227494,0.17512,3991.1,3990.9,0.17512]
[1733535227700,0.17513,3991.0,3990.9,0.17513]
[1733535227895,0.17512,3991.0,3990.8,0.94013]
[1733535228089,0.17512,3991.1,3990.9,0.17513]
[1733535228295,0.17512,3991.1,3990.9,0.17512]
[1733535228490,0.17513,3991.0,3990.8,0.765]
[1733535228891,0.17513,3991.0,3990.9,0.17512]
[1733535228892,0.17512,3991.0,3990.9,0.17512]
[1733535229098,2.94922256,3991.2,3990.8,0.765]
[1733535229297,3.12433256,3991.4,3991.2,0.17511]
[1733535229597,2.94922256,3991.4,3991.2,0.17511]
[1733535229801,0.17511,3991.3,3990.9,0.8119]
[1733535230004,0.17511,3991.4,3991.2,0.17511]
[1733535230202,2.94922256,3991.5,3990.9,0.8119]
[1733535230397,3.12432256,3991.5,3990.9,0.8119]
[1733535230801,0.17511,3991.4,3991.2,0.17511]
[1733535231002,3.3829,3991.6,3991.4,0.1751]
[1733535231198,3.3829,3991.6,3990.9,0.8119]
[1733535231199,0.1751,3991.5,3991.3,0.17511]
[1733535232306,3.2078,3991.6,3990.9,0.8119]
[1733535232497,3.2078,3991.6,3991.5,0.1751]
[1733535232700,3.2078,3991.6,3991.5,0.9401]
[1733535232899,3.3829,3991.6,3991.5,0.765]
[1733535233498,3.2078,3991.6,3991.0,0.17512]
[1733535233702,0.17512,3991.0,3990.9,0.6561298]
[1733535233903,0.17512,3991.0,3990.9,1.4011298]
[1733535234106,0.17512,3991.0,3990.9,0.6561298]
[1733535234302,0.17512,3991.0,3990.9,0.2503298]
[1733535235002,3.2078,3991.2,3990.4,0.7886]
[1733535235206,0.17515,3990.5,3990.4,0.6540298]
[1733535235706,0.17515,3990.5,3990.4,0.2503298]
[1733535235903,3.2078,3991.3,3990.5,0.43787]
[1733535236207,3.2078,3991.3,3990.4,0.2503298]
[1733535236412,0.17513,3990.9,3990.8,0.17513]
[1733535236603,0.17512,3991.1,3991.0,0.17512]
[1733535237014,3.38291,3991.3,3991.2,0.17512]
[1733535237198,3.2078,3991.3,3991.2,0.17512]
[1733535238402,3.38291,3991.3,3991.2,0.17512]
[1733535238914,0.17512,3991.1,3991.0,0.17512]
[1733535239210,3.2078,3991.3,3990.9,0.745]
[1733535239610,0.17512,3991.0,3990.9,0.745]
[1733535239805,0.17512,3991.1,3991.0,0.17512]
[1733535240007,0.17513,3991.1,3991.0,0.17513]
[1733535240308,3.2078,3991.3,3990.9,0.745]
[1733535240814,0.17513,3991.0,3990.9,0.92013]
[1733535241011,3.2078,3991.3,3990.9,0.745]
[1733535241507,0.17513,3991.1,3991.0,0.17513]
[1733535242313,3.2078,3991.3,3990.9,0.745]
[1733535242604,0.17512,3991.2,3990.9,0.92013]
[1733535242801,0.17512,3991.2,3991.0,0.17513]
[1733535243001,0.17512,3991.1,3991.0,0.17513]
[1733535243599,0.17513,3991.0,3990.9,0.99531038]
[1733535244301,0.17513,3991.0,3990.9,1.17044038]
[1733535244503,0.17513,3991.0,3990.9,0.99531038]
[1733535245112,0.17512,3991.3,3991.2,0.17512]
[1733535245312,0.17512,3991.3,3991.0,0.17513]
[1733535245519,0.17513,3991.0,3990.9,0.99531038]
[1733535245807,0.17513,3991.1,3991.0,0.17513]
[1733535246213,0.17513,3991.0,3990.9,0.99531038]
[1733535246909,0.17513,3991.0,3990.9,0.25031038]
[1733535247207,0.17514,3990.7,3990.3,0.17516]
[1733535247413,0.17515,3990.5,3990.3,0.745]
[1733535249502,3.2078,3990.6,3990.3,0.745]
[1733535249706,0.17515,3990.4,3990.3,0.745]
[1733535251509,0.17519,3989.7,3989.4,3.383]
[1733535251706,0.17519,3989.7,3989.4,0.745]
[1733535253308,3.38298,3989.8,3989.7,0.17519]
[1733535253510,3.2078,3989.8,3989.4,0.745]
[1733535253810,0.17519,3989.7,3989.5,0.17519]
[1733535254210,0.17519,3989.7,3989.4,0.745]
[1733535254410,0.17519,3989.7,3989.5,0.17519]
[1733535255010,0.3748,3990.1,3989.4,0.745]
[1733535255214,0.17518,3989.7,3989.4,0.745]
[1733535255416,0.17518,3989.7,3989.6,0.4255198]
[1733535255611,0.17518,3989.7,3989.6,0.2503298]
[1733535256815,1.95838305,3989.8,3989.3,0.745]
[1733535257016,0.1752,3989.4,3989.3,0.745]
[1733535257910,0.1752,3989.5,3989.3,0.1752]
[1733535258111,0.1752,3989.5,3989.3,0.9202]
[1733535258313,1.95838305,3989.8,3989.3,0.9202]
[1733535258607,3.2078,3990.2,3989.3,0.9202]
[1733535258608,5.16618305,3990.2,3989.5,0.17519]
[1733535258817,0.17518,3989.8,3989.6,0.17519]
[1733535259115,0.17517,3990.1,3989.6,0.17519]
[1733535259416,0.17518,3989.8,3989.6,0.17519]
[1733535259613,3.2078,3990.2,3989.6,0.17519]
[1733535259918,0.17518,3989.8,3989.6,0.17519]
[1733535260106,3.2078,3990.2,3989.3,0.99540627]
[1733535260512,0.17518,3989.8,3989.6,0.17519]
[1733535260819,3.38293,3991.0,3990.7,0.17514]
[1733535261018,3.38293,3991.0,3989.7,0.43796]
[1733535261019,3.2078,3991.0,3990.8,0.408]
[1733535261212,3.2078,3991.0,3990.9,0.17513]
[1733535261613,2.13350305,3991.2,3990.9,3.5863]
[1733535261817,1.95838305,3991.2,3990.9,3.5863]
[1733535262114,6.15702256,3991.8,3990.9,3.5863]
[1733535262115,1.95838305,3991.6,3990.9,3.5863]
[1733535262313,1.95838305,3991.6,3991.5,0.17511]
[1733535262518,3.2078,3991.8,3991.4,0.745]
[1733535263017,3.2078,3991.8,3991.6,0.1751]
[1733535263211,3.38289,3991.8,3991.6,0.1751]
[1733535263416,3.2078,3991.8,3991.4,0.745]
[1733535263615,3.2078,3991.8,3991.6,0.1751]
[1733535263816,3.2078,3991.8,3991.7,0.5741]
[1733535264514,1.95838305,3992.0,3991.9,0.17509]
[1733535264722,1.95838305,3992.0,3991.8,0.17509]
[1733535265622,2.13346305,3992.0,3991.8,0.17509]
[1733535265920,2.13347305,3992.0,3991.7,0.57409]
[1733535266113,0.17509,3991.9,3991.7,0.57409]
[1733535266318,2.13347305,3992.0,3991.8,0.17509]
[1733535266516,1.95838305,3992.0,3991.7,0.399]
[1733535266712,1.95838305,3992.0,3991.9,0.17509]
[1733535266917,1.95838305,3992.0,3991.8,0.3924]
[1733535267118,1.95838305,3992.0,3991.8,0.56749]
[1733535267525,2.13346305,3992.0,3991.8,0.3924]
[1733535267814,2.13347305,3992.0,3991.8,0.3924]
[1733535268018,1.95838305,3992.0,3991.8,0.56749]
[1733535268223,2.13347305,3992.0,3991.8,0.3924]
[1733535269522,2.13347305,3992.0,3991.8,0.56749]
[1733535270611,1.95838305,3992.0,3991.8,0.3924]
[1733535270819,1.95838305,3992.0,3991.9,0.729]
[1733535271525,1.95838305,3992.0,3991.8,0.3924]
[1733535271718,2.13347305,3992.0,3991.9,0.729]
[1733535272117,2.13347305,3992.0,3991.8,1.1214]
[1733535272118,0.17509,3991.9,3991.8,1.1214]
[1733535273022,0.17509,3991.9,3991.8,1.29649]
[1733535273725,2.13347305,3992.0,3991.9,0.17509]
[1733535273927,2.13347305,3992.0,3991.8,4.3292]
[1733535274118,0.17509,3991.9,3991.8,4.50429]
[1733535274321,0.17509,3991.9,3991.8,4.3292]
[1733535274526,0.17509,3991.9,3991.8,4.50429]
[1733535275329,0.17509,3991.9,3991.8,3.2078]
[1733535275519,0.1879789,3991.9,3991.8,3.2078]
[1733535275722,0.17511,3991.5,3991.4,0.729]
[1733535276024,0.17512,3991.1,3991.0,0.25037179]
[1733535276532,0.17514,3990.8,3990.7,0.17514]
[1733535276826,0.17514,3990.8,3990.7,0.90414]
[1733535277428,0.17514,3990.8,3990.7,0.729]
[1733535278826,0.17514,3990.6,3990.5,0.17515]
[1733535279525,0.17515,3990.5,3990.4,0.17515]
[1733535280829,0.17515,3990.4,3990.3,4.51406]
[1733535281131,0.17517,3990.0,3989.9,3.615]
[1733535281333,1.95838305,3990.3,3989.8,0.729]
[1733535281530,0.17518,3989.9,3989.8,0.729]
[1733535281830,0.17518,3989.9,3989.8,0.97934234]
[1733535283423,2.94922256,3990.2,3989.8,0.97934234]
[1733535283629,2.94922256,3990.2,3990.1,0.17517]
[1733535283824,0.17516,3990.3,3990.2,0.17516]
[1733535284030,0.17516,3990.2,3990.1,0.17516]
[1733535284627,0.17516,3990.4,3990.3,0.17516]
[1733535284832,0.17515,3990.5,3990.3,0.17516]
[1733535285033,0.17515,3990.5,3990.4,0.3921]
[1733535286233,5.16618305,3991.1,3990.8,0.17513]
[1733535286425,0.17513,3991.0,3990.7,0.17514]
[1733535286626,0.17513,3990.9,3990.7,0.17514]
[1733535287034,5.16618305,3991.1,3990.7,0.17514]
[1733535287228,0.17513,3990.9,3990.6,0.17514]
[1733535287427,5.16618305,3991.1,3990.6,0.17514]
[1733535287629,0.17514,3990.8,3990.7,0.17514]
[1733535288328,0.17514,3990.8,3990.5,0.7868]
[1733535288528,5.16618305,3991.1,3990.5,0.7868]
[1733535288737,0.17514,3990.6,3990.5,0.7868]
[1733535289238,0.43782,3991.0,3990.3,0.729]
[1733535289239,0.17515,3990.4,3990.3,0.729]
[1733535293335,0.17515,3990.4,3990.3,0.90416]
[1733535293530,0.17515,3990.4,3990.3,0.729]
[1733535294032,0.17515,3990.6,3990.5,0.17515]
[1733535294228,5.16618305,3991.1,3990.4,0.3913]
[1733535294229,3.2078,3991.1,3990.4,0.3913]
[1733535294429,0.17514,3990.9,3990.8,0.17513]
[1733535295027,0.17513,3991.0,3990.9,0.17513]
[1733535295233,0.17512,3991.2,3991.1,0.17512]
[1733535295628,0.17512,3991.3,3991.2,0.17512]
[1733535295834,0.17512,3991.2,3991.1,0.17512]
[1733535296342,1.95838305,3991.5,3990.9,1.32192278]
[1733535296537,0.17512,3991.3,3991.2,0.17511]
[1733535297039,0.17511,3991.4,3991.3,0.17511]
[1733535297639,3.2206889,3991.9,3991.5,0.1751]
[1733535297640,0.1751,3991.6,3991.5,0.1751]
[1733535297939,0.17511,3991.5,3991.4,0.1751]
[1733535298535,0.17511,3991.5,3991.4,0.17511]
[1733535298735,0.17513,3991.0,3990.9,1.1216]
[1733535299035,0.17513,3991.0,3990.9,1.29673]
[1733535300543,2.94922256,3991.3,3990.9,1.1216]
[1733535300739,0.17512,3991.2,3991.1,0.17512]
[1733535301141,0.17513,3991.1,3991.0,0.17512]
[1733535301441,0.17512,3991.2,3991.1,0.17512]
[1733535301640,3.12434256,3991.2,3991.1,0.17512]
[1733535301843,0.17512,3991.2,3991.1,0.17512]
[1733535302046,2.94922256,3991.2,3990.9,1.1216]
[1733535302248,0.17511,3991.5,3990.9,1.55943]
[1733535302445,0.17511,3991.5,3991.4,0.17511]
[1733535302946,2.94922256,3991.6,3990.9,1.1216]
[1733535303248,0.17513,3991.0,3990.9,1.29673]
[1733535303436,0.17513,3991.0,3990.9,1.1216]
[1733535303963,0.17513,3991.0,3990.9,1.29673]
[1733535304245,2.94922256,3991.1,3991.0,0.17513]
[1733535304443,2.94922256,3991.2,3990.9,4.3294]
[1733535304642,2.94922256,3991.3,3991.2,0.17512]
[1733535304841,2.94922256,3991.4,3990.9,4.3294]
[1733535305041,2.94922256,3991.4,3991.3,0.17511]
[1733535305238,3.93215847,3991.6,3991.5,0.17511]
[1733535305445,2.94208119,3991.6,3991.1,0.17512]
[1733535305750,2.94208119,3991.6,3991.0,0.43783]
[1733535306044,2.94208119,3991.7,3991.6,0.1751]
[1733535306245,5.17907195,3991.9,3991.6,0.716]
[1733535306440,0.1751,3991.7,3991.6,0.716]
[1733535306647,0.17509,3991.8,3991.7,0.17509]
[1733535307044,3.2206889,3991.9,3991.8,0.17509]
[1733535307237,3.3957789,3991.9,3991.8,0.59209]
[1733535307850,0.1879789,3991.9,3991.8,0.59209]
[1733535308339,0.0128889,3991.9,3991.8,0.59209]